[Event "45th FIDE Womens Olympiad 2024"]
[Site "Budapest"]
[Date "2024.09.16"]
[Round "6.36"]
[White "Calzetta Ruiz, Monica"]
[Black "Sarquis, Maria Belen"]
[Result "1-0"]
[ECO "C76"]
[WhiteElo "2199"]
[BlackElo "2172"]
[Annotator "TA"]
[PlyCount "84"]
[EventDate "2024.09.05"]
[EventType "team-tourn"]
[EventCountry "HUN"]
[SourceTitle "playchess.com"]
[Source "ChessBase"]
[SourceQuality "1"]
[WhiteTeam "Spain"]
[BlackTeam "Argentina"]
[WhiteTeamCountry "ESP"]
[BlackTeamCountry "ARG"]
[TimeControl "40/5400+30:1800+30"]

{[%evp 15,84,27,32,26,43,-5,-7,0,-5,-32,-12,-4,4,-19,-4,-18,-10,-72,-79,-78,-69,-82,-75,-88,-63,-87,-88,-81,-25,-58,-8,-6,0,0,0,-11,14,0,0,0,0,0,183,190,378,243,342,348,477,468,766,734,29978,29979,29988,1501,29988,29989,29993,12833,5697,1185,29990,5197,1745,0,29990,29991,29991,29992,29999]} 1. e4 e5 2. Nf3 Nc6 3. Bb5 a6 4. Ba4 d6 5. O-O Bd7 6. c3 g6 7. d4 Bg7 8. Be3 Nf6 9. Nbd2 Ng4 10. Bb3 (10. Bg5 $14 f6 11. Bh4) 10... Nxe3 $11 11. fxe3 {[%cal Ob3f7] The position is equal.} O-O 12. Qe2 Qe7 13. a4 Kh8 14. Qf2 Na5 {White must now prevent ...Nxb3.} 15. Ba2 c5 16. d5 (16. Bd5 $11) 16... b5 $17 (16... Bxa4 17. b4 $16) 17. b4 Nb7 18. axb5 axb5 19. Bb3 Bh6 20. Rfe1 Qd8 21. Nf1 cxb4 ({Black should try} 21... Qc7 $17 {Threatens to win with ...Rxa1.} 22. Qb2 Qb6) 22. cxb4 $11 Rxa1 (22... Kg7 $15) 23. Rxa1 Qb6 24. h4 f6 25. Bd1 Kg7 26. N3h2 f5 {Dodges Ng4} 27. exf5 gxf5 {[%cal Bg6f5,Bf5f4][%mdl 32]} 28. Nf3 {[%cal Bh2f3,Bf3g5,Bg5e6][%mdl 32]} Rc8 $2 {[#]} (28... Nd8 $11 {and Black has nothing to worry.}) 29. Ng5 $18 {aiming for Ne6+.} Rc4 $2 (29... f4 30. exf4 Qc7 (30... Qxf2+ $2 31. Kxf2 exf4 32. Ra7 $18) 31. fxe5 Bxg5 32. hxg5 Rf8) 30. Ra8 Nd8 {Wards off Ne6+} (30... Bxg5 {is a better defense.} 31. Qg3 Rc8 32. Qxg5+ Kh8 33. Qf6+ Kg8) 31. Qg3 f4 32. Ne6+ Kf6 (32... Kh8 $142 33. Qf3 Bxe6) 33. Qg8 Nxe6 34. dxe6 Bxe6 35. Qxh7 (35. Rf8+ $142 Ke7 36. Re8+ (36. Qxh7+ Kxf8 37. Qxh6+ Kf7 $17) 36... Kd7 37. Qxe6+ Kc6 38. Bf3+ (38. Qxh6 fxe3 39. Bf3+ e4 $18) 38... e4 39. Bxe4+ Rxe4 40. Qxe4+ (40. Rc8+ Qc7 41. Qxe4+ Kb6 42. Rxc7 Kxc7 43. Qxh7+ Kc6 44. Qxh6 Kd7 45. Qxf4 Ke7) 40... Kc7 41. Qa8 (41. Qxh7+ Bg7 42. Re7+ Kc8 43. Rxg7 Qd8 44. Qf5+ Kb8 45. Qxb5+ Qb6 46. Qxb6+ Kc8 47. Qc7#)) 35... Bg7 36. Bh5 Bf7 37. Bxf7 (37. Rf8 $142 Ke6 38. Bxf7+ (38. Rxf7 fxe3 39. Qg6+ Kd5 $18) 38... Kd7 39. Be8+ (39. Qxg7 Qxe3+ 40. Nxe3 Rc1+ 41. Kh2 Rh1+ 42. Kxh1 Kc6 43. Bd5+ Kb6 44. Qb7#) 39... Kc8 40. Qxg7 Qd8 41. Qa7 (41. Bxb5 Qxf8 42. Qxf8+ Kb7 43. Bxc4 Kc7 44. Bd5 f3 45. Qe7+ Kc8 46. gxf3 e4 47. f4 Kb8 48. Qb7#) (41. Bd7+ Kb7 42. Rxd8 Rc7 43. Qg8 Rc4 44. Rb8+ Ka7 45. Ra8+ Kb7 46. Qb8#) 41... Qc7 42. Bxb5+ Qd8 43. Bd7#) 37... Kxf7 38. Qh5+ (38. Qf5+ $142 Ke7 39. Qg6) 38... Kf6 39. Qg5+ (39. Re8 $142 Qb7 40. Qg4 Qe7 41. Qg5+ (41. Rxe7 Kxe7 42. Qxg7+ Ke6 $18) 41... Ke6 42. Qxe7+ (42. Rxe7+ Kd5 43. Qxg7 fxe3 44. Nxe3+ Kd4 45. Nxc4 bxc4 46. Rc7 Kd3) 42... Kf5 43. Qxg7 Ke4 44. Qh7+ Kd5 45. Qb7+ Rc6 46. Qf7+ (46. Qxb5+ Rc5 47. bxc5 fxe3 48. cxd6+ Kxd6 49. Nxe3 e4 50. Nf5+ Kc7 51. Re7+ Kd8 52. Qe8#) 46... Ke4 47. Qh7+ Kd5 48. Qd3#) 39... Kf7 40. Qh5+ (40. Qf5+ $18 Ke7 41. Qg6) 40... Kf6 $1 41. Re8 Qa7 42. Qg4 {[%csl Ge8][%cal Rg4e6]} fxe3 {Weighted Error Value: White=0.38/Black=0.90.  Loses game:     	---       	Black=1      Mistake:       	White=2     	Black=5      Inaccurate:     	White=3     	Black=2      OK:         	White=7     	Black=6      Best:        	White=3     	---} 1-0

[Event "45th FIDE Womens Olympiad 2024"]
[Site "Budapest"]
[Date "2024.09.16"]
[Round "6.37"]
[White "Linares Napoles, Oleiny"]
[Black "Kamalidenova, Meruert"]
[Result "0-1"]
[ECO "A36"]
[WhiteElo "2201"]
[BlackElo "2352"]
[Annotator "TA"]
[PlyCount "86"]
[EventDate "2024.09.05"]
[EventType "team-tourn"]
[EventCountry "HUN"]
[SourceTitle "playchess.com"]
[Source "ChessBase"]
[SourceQuality "1"]
[WhiteTeam "Cuba"]
[BlackTeam "Kazakhstan"]
[WhiteTeamCountry "CUB"]
[BlackTeamCountry "KAZ"]
[TimeControl "40/5400+30:1800+30"]

{[%evp 16,86,12,-14,-14,-9,4,-12,0,-8,0,0,23,3,70,68,68,39,106,88,94,87,101,85,104,79,170,145,150,112,110,114,121,143,126,59,97,17,18,0,0,0,0,0,0,-5,-33,-21,-48,-135,-135,-189,-182,-180,-181,-178,-179,-176,-173,-408,-424,-422,-418,-400,-377,-1644,-1161,-29976,-29976,-29968,-5297,-29996,-29997]} 1. c4 Nf6 2. g3 g6 3. Bg2 Bg7 4. Nc3 O-O 5. e4 c5 6. Nge2 Nc6 7. d3 a6 {A36: Symmetrical English vs ...g6: 4 Bg2 Bg7.} 8. O-O Rb8 9. Bg5 $146 ({Predecessor:} 9. a4 Ne8 10. Be3 d6 11. d4 cxd4 12. Nxd4 Nc7 13. Qd2 Bd7 14. h3 Na5 15. Qd3 {1-0 Duda,J (2729)-Bernadskiy,V (2609) Titled Tuesday intern op 17th Jan Late blitz 2023 (4)}) 9... b5 10. Qd2 Re8 11. Rac1 d6 12. b3 Bg4 13. h3 Bd7 14. Bh6 Bh8 ({Black should play} 14... Bxh6 $11 15. Qxh6 b4) 15. f4 $1 $14 b4 16. Nd1 e6 (16... a5 $14) 17. g4 Qc7 18. Ne3 Bc8 19. Rf2 Nd7 20. Rcf1 f6 (20... Nd4 $16 {was necessary.}) 21. f5 Nde5 22. fxe6 Bxe6 23. Nf4 Qd8 24. Nxe6 Rxe6 {[#]} 25. g5 (25. Nd5 $1 $16 {[%mdl 512]}) 25... Nf7 26. Ng4 (26. h4 $1 $16) 26... Nce5 $1 $11 (26... Nxg5 27. e5 Nxe5 28. Bd5 Nxg4 (28... Nxh3+ $2 29. Kg2 $18) 29. hxg4 $18) 27. Nxf6+ Bxf6 28. gxf6 Nxh6 $1 29. Qxh6 Rb7 $1 30. Qg5 Rf7 31. h4 Qf8 32. Bh3 (32. h5 $1 $15 h6 33. Qg3 (33. Qh4 g5 $19) 33... Rexf6 (33... Rfxf6 $2 34. Bh3 $18) 34. Rxf6 Rxf6 35. hxg6) 32... h6 $17 33. Qe3 (33. Qf4 $17 Rexf6 34. Qxf6 Rxf6 35. Rxf6) 33... Rexf6 $19 34. Rxf6 Rxf6 35. Rxf6 Qxf6 36. Qxh6 Nxd3 37. e5 $2 (37. Bg2) 37... Qf2+ $19 (37... dxe5 38. Bg2 Nf4 (38... e4 39. Qe3 $17) 39. Bd5+ Nxd5 40. cxd5 $17) (37... Nxe5 38. h5 $17) 38. Kh1 {[#]} Qe1+ $1 (38... Nxe5 $2 39. Be6+ Nf7 40. Qxg6+ Kh8 (40... Kf8 $2 41. Qxf7+ Qxf7 42. Bxf7 $18) 41. Qxf7 $18) 39. Kg2 {[#]} Qe4+ $1 (39... Nxe5 40. Be6+ Nf7 41. Qxg6+ Kh8 42. Qh5+ (42. Qxf7 Qd2+ 43. Kg3 Qe3+ 44. Kg4 Qe2+ 45. Kg5 Qe5+ 46. Kh6 Qe3+ 47. Kh5 Qe2+ 48. Bg4 Qe5+ 49. Kg6 Qe4+ 50. Qf5 Qe8+ 51. Kh6 Qe3+ 52. Qg5 Qxg5+ 53. hxg5 Kg8) 42... Kg7 43. Qxf7+ Kh6 44. Qf8+ (44. Qf6+ Kh7 45. Qf5+ Kh6 46. Qg5+ Kh7 47. Bf5+ Kh8 48. Qh6+ Kg8 49. Be6+ Qxe6) 44... Kh5 45. Bf7+ (45. Qxd6 Qe2+ 46. Kg3 Qe3+ 47. Kg2 Qe2+ 48. Kg3 Qe3+ 49. Kg2 Qe2+ $11) 45... Kg4 46. Qg7+ (46. Qxd6 Qe2+ 47. Kg1 Qe1+ 48. Kg2 Qe2+ 49. Kg1 Qe1+ 50. Kg2 $11) 46... Kxh4 47. Qh6+ Kg4 48. Be6+ (48. Qxd6 Qe2+ 49. Kg1 Qe1+ 50. Kg2 Qe2+ 51. Kg1 Qe1+ 52. Kg2 $11) (48. Qxd6 Qe2+ 49. Kg1 Qe1+ 50. Kg2 Qe2+ 51. Kg1 Qe1+ 52. Kg2 $11)) 40. Kg1 $2 (40. Kg3 Qxe5+ 41. Kf3 Qf6+ 42. Kg2) 40... Nf4 $19 41. Bf1 Qe3+ 42. Kh1 Qf2 43. Bh3 Qf3+ ({Weaker is} 43... Nxh3 44. Qxg6+ Kh8 45. Qh6+ Kg8 46. Qe6+ Kh7 47. Qxh3 dxe5 48. Qg4 $11) 0-1

[Event "45th FIDE Womens Olympiad 2024"]
[Site "Budapest"]
[Date "2024.09.16"]
[Round "6.37"]
[White "Alazmi, Amani"]
[Black "Lima, Izidora Lourenco"]
[Result "1/2-1/2"]
[ECO "A24"]
[WhiteElo "1673"]
[BlackElo "1579"]
[PlyCount "62"]
[EventDate "2024.09.05"]
[EventType "team-tourn"]
[EventCountry "HUN"]
[WhiteTeam "Kuwait"]
[BlackTeam "Sao Tome and Principe"]
[WhiteTeamCountry "KUW"]
[BlackTeamCountry "SAO"]
[TimeControl "40/5400+30:1800+30"]

1. c4 e5 2. g3 Nf6 3. Bg2 g6 4. Nc3 Bg7 5. e4 O-O 6. Nge2 d6 7. O-O Be6 8. d3 Qd7 9. f4 Bg4 10. Be3 Nc6 11. Qd2 Rad8 12. Rf2 Rfe8 13. Raf1 Bxe2 14. Nxe2 Ng4 15. Bh3 f5 16. Bxg4 fxg4 17. f5 gxf5 18. exf5 Bf6 19. Nc3 Rf8 20. Nd5 Ne7 21. Nxf6+ Rxf6 22. Bg5 Rf7 23. Bh6 Kh8 24. f6 Nc6 25. h3 Nd4 26. Qg5 Nf3+ 27. Rxf3 gxf3 28. Bg7+ Kg8 29. Bh6+ Kh8 30. Bg7+ Kg8 31. Bh6+ Kh8 1/2-1/2

[Event "45th FIDE Womens Olympiad 2024"]
[Site "Budapest"]
[Date "2024.09.16"]
[Round "6.38"]
[White "Balabayeva, Xeniya"]
[Black "Arribas Robaina, Maritza"]
[Result "1-0"]
[ECO "D02"]
[WhiteElo "2335"]
[BlackElo "2143"]
[Annotator "TA"]
[PlyCount "73"]
[EventDate "2024.09.05"]
[EventType "team-tourn"]
[EventCountry "HUN"]
[SourceTitle "playchess.com"]
[Source "ChessBase"]
[SourceQuality "1"]
[WhiteTeam "Kazakhstan"]
[BlackTeam "Cuba"]
[WhiteTeamCountry "KAZ"]
[BlackTeamCountry "CUB"]
[TimeControl "40/5400+30:1800+30"]

{[%evp 10,73,11,-7,0,-4,5,-10,0,-6,-10,-7,0,0,5,0,0,0,0,0,0,-5,0,0,0,0,0,0,0,0,0,-2,0,0,0,0,0,0,0,0,0,0,0,0,0,0,0,0,0,0,0,0,0,0,0,0,0,0,0,0,0,0,0,0,898,403]} 1. d4 d5 2. Bf4 Nf6 3. e3 e6 4. Nf3 Bd6 5. Bg3 O-O 6. Nbd2 c5 7. c3 Qc7 8. Bxd6 Qxd6 {The position is equal.} 9. Ne5 Nfd7 10. Ndf3 f6 11. Nxd7 Nxd7 {[%cal Bb8d7,Bd7c5,Bc5e4][%mdl 32]} 12. Be2 b6 13. O-O Bb7 14. c4 Rfd8 15. Rc1 Kh8 16. dxc5 Nxc5 17. b4 Ne4 18. Qb3 dxc4 19. Bxc4 e5 20. Rfd1 Qe7 21. Bd5 Bxd5 22. Rxd5 Rac8 23. Rxd8+ Rxd8 24. h3 g6 25. Qc2 Nd6 (25... Qxb4 $2 {loses.} 26. Rb1 Qa5 27. Qxe4 $18) 26. Qb3 Kg7 27. Rc6 Nf7 28. Qc4 Rd6 29. b5 Rxc6 30. Qxc6 $11 {[%mdl 4096] Endgame. KQN-KQN} ({Don't play} 30. bxc6 Qc7 $17) 30... Nd8 31. Qd5 Nf7 32. g4 Qd6 33. Qb7 Qb4 34. g5 Qxb5 35. Qxa7 Qc6 36. gxf6+ Kxf6 $2 {[%mdl 8192] [#]} (36... Qxf6 $11 37. Kg2 Kh6) 37. Qxf7+ $3 {[%mdl 512] Weighted Error Value: White=0.02 (flawless) /Black=0.03 (flawless) .  Loses game:     	---       	Black=1      OK:         	White=14    	Black=10     Brilliant:      	White=1     	---} 1-0

[Event "45th FIDE Womens Olympiad 2024"]
[Site "Budapest"]
[Date "2024.09.16"]
[Round "6.39"]
[White "Miranda Llanes, Yerisbel"]
[Black "Nurman, Alua"]
[Result "0-1"]
[ECO "D35"]
[WhiteElo "2294"]
[BlackElo "2324"]
[Annotator "TA"]
[PlyCount "68"]
[EventDate "2024.09.05"]
[EventType "team-tourn"]
[EventCountry "HUN"]
[SourceTitle "playchess.com"]
[Source "ChessBase"]
[SourceQuality "1"]
[WhiteTeam "Cuba"]
[BlackTeam "Kazakhstan"]
[WhiteTeamCountry "CUB"]
[BlackTeamCountry "KAZ"]
[TimeControl "40/5400+30:1800+30"]

{[%evp 15,68,13,20,9,12,13,10,13,22,20,26,15,24,0,8,7,10,7,25,6,17,19,16,9,40,0,0,0,0,0,0,0,0,0,0,0,0,-8,0,0,0,-103,-101,-125,-123,-125,-112,-132,-121,-148,-150,-953,-933,-891,-872]} 1. d4 d5 2. c4 e6 3. Nc3 Nf6 4. cxd5 exd5 5. Bg5 c6 6. e3 h6 7. Bh4 Be7 8. Bd3 O-O 9. Bg3 Re8 10. h3 Bd6 11. Nge2 {[%cal Bg1e2,Be2g3,Bg3f5][%mdl 32] The position is equal.} Bxg3 12. Nxg3 Nbd7 {[%cal Bb8d7,Bd7f8,Bf8g6,Bg6h4][%mdl 32]} 13. O-O a5 14. Nf5 Nf8 15. Rc1 Ng6 16. Ng3 Nh4 17. Na4 Rb8 18. a3 Qd6 {[%cal Oe8e3]} 19. Re1 b6 20. e4 dxe4 21. Nxe4 Nxe4 22. Rxe4 Rxe4 23. Bxe4 Bd7 {[%cal Oc6c5]} 24. Qc2 Qf4 25. g3 Qg5 26. Kh2 {[#]} Bf5 $1 27. Bxf5 (27. Rd1 Nf3+) 27... Nxf5 28. h4 (28. Qxc6 $11 {remains equal.} b5 (28... Nxd4 29. Qc7 $11) 29. Qc7) 28... Qg4 $17 {Black is more active.} 29. Qxc6 Nxd4 ({Much worse is} 29... Qxd4 $6 30. Rc2 $11) 30. Qd6 Nf3+ 31. Kg2 Nxh4+ 32. Kh2 {[#]} Re8 {[%cal Og4f3] ( -> ...Qf3!)} 33. gxh4 $2 (33. Qf4 $17 Qxf4 34. gxf4) 33... Qxh4+ $19 34. Kg2 Qg5+ {Weighted Error Value: White=0.29 (precise) /Black=0.05 (flawless) .  Loses game:     	White=1     	---        Mistake:       	White=1     	---        Inaccurate:     	White=1     	Black=1      OK:         	White=10    	Black=8      Best:        	White=1     	Black=2} 0-1

[Event "45th FIDE Womens Olympiad 2024"]
[Site "Budapest"]
[Date "2024.09.16"]
[Round "6.40"]
[White "Kairbekova, Amina"]
[Black "Forgas Moreno, Yaniela"]
[Result "1-0"]
[ECO "B12"]
[WhiteElo "2243"]
[BlackElo "2203"]
[Annotator "TA"]
[PlyCount "103"]
[EventDate "2024.09.05"]
[EventType "team-tourn"]
[EventCountry "HUN"]
[SourceTitle "playchess.com"]
[Source "ChessBase"]
[SourceQuality "1"]
[WhiteTeam "Kazakhstan"]
[BlackTeam "Cuba"]
[WhiteTeamCountry "KAZ"]
[BlackTeamCountry "CUB"]
[TimeControl "40/5400+30:1800+30"]

{[%evp 9,103,10,34,31,69,46,53,35,53,41,64,53,48,31,51,47,51,46,54,62,57,51,66,67,73,49,71,60,82,81,85,8,6,7,7,-45,-53,-41,-37,-70,-43,-46,-44,-48,-48,-299,-283,-281,-280,-766,-264,-297,-240,-231,-183,-170,-148,-150,-150,-151,-150,-198,-181,-337,-333,-306,-265,-285,-261,-249,-238,-223,-202,-202,-194,-203,0,-97,-97,-97,-82,-96,-69,-80,-65,-94,0,0,0,0,29996,29997,29997,29998,29998,29999]} 1. e4 c6 2. d4 d5 3. e5 Bf5 4. Nf3 e6 5. Be2 Bg6 6. O-O Nh6 7. a4 Be7 8. c3 {White is slightly better.} O-O 9. a5 Nd7 10. Bxh6 gxh6 11. Ne1 f6 12. Bg4 fxe5 13. Bxe6+ Kh8 14. Bxd7 Qxd7 15. dxe5 Qe6 16. Qe2 (16. f4 Bc5+ 17. Kh1 Qxe5 $19) 16... Rae8 17. f4 {Against Bg5} Bc5+ 18. Kh1 Qf5 {[%cal Oe8e5]} 19. Nd2 Bh5 20. Ndf3 ({White should play} 20. Qd3 $16) 20... Qxf4 $11 21. Nd3 {[%csl LRc5,LRf4]} Qe4 22. Qd1 (22. Qxe4 $11 dxe4 23. Nxc5 exf3 24. Kg1 (24. Nxb7 $2 f2 $19)) 22... Be7 $15 23. Ra4 Qe3 24. Nde1 Bg6 {[%cal Oe3e5]} 25. Nc2 Qd3 26. Ncd4 Bg5 $40 {[%mdl 128] White needs to defend precisely.} 27. Qa1 $2 {[%mdl 8192]} (27. Qxd3 $15 Bxd3 28. Re1) 27... c5 $1 $19 28. Rd1 {[#]} Qa6 29. Nb3 (29. Nxg5 cxd4 (29... hxg5 $2 30. Nf3 $19) 30. Nh3 (30. Nf3 $2 Rxf3 31. Rg1 Be4 $19) 30... dxc3 (30... Rxe5 31. Raxd4 Be4 32. R4d2 $17) 31. bxc3) 29... Bc2 $2 (29... Rxf3 30. Rg1 Rf5 31. Nxc5 Qb5) 30. Nxc5 Qc6 31. b4 Bxd1 32. Qxd1 Be3 {[%cal Of8f3] Hoping for ...Rxf3!} 33. Ra1 Bxc5 34. bxc5 Qxc5 35. Qd2 (35. h3 $17) 35... Rc8 36. Qxh6 $2 (36. Rd1) 36... Qxc3 37. Rf1 Qd3 38. Rc1 Qg6 39. Qd2 Rxc1+ 40. Qxc1 {[%mdl 4096] Endgame. KQR-KQN} Qe4 41. h3 d4 42. Qc5 Kg7 (42... Rg8 $19 {...Qe2 is the strong threat.} 43. e6 Qxe6 44. Qxd4+ Rg7 45. Qxa7 Qe2) 43. Qe7+ {[#]} (43. Qc7+ $1 $11 Kg8 44. Qc4+ Kh8 45. Qc5) 43... Kg8 $1 $17 44. Qe6+ Kh8 45. Qe7 Qf4 46. Qxb7 {[%cal Oe5e6]} d3 47. e6 Rb8 (47... Qd6 $17 48. e7 Re8 49. Qb2+ Kg8 50. Qb3+ Kg7 51. Qc3+ Kg8 52. Qb3+ Kg7 53. Qc3+ Kg8 54. Qb3+) 48. Qd7 Rb1+ 49. Ng1 Qe3 $2 {[%mdl 8192]} (49... Re1 $11) 50. Qe8+ {White mates.} Kg7 51. Qf7+ Kh6 52. Qf6+ {White used his chance.   Weighted Error Value: White=0.36/Black=0.40.  Loses game:     	White=1     	Black=1      Missed win:     	---       	Black=1      Mistake:       	White=6     	Black=2      Inaccurate:     	White=2     	Black=2      OK:         	White=11    	Black=14     Best:        	White=10    	Black=3      Strong:       	---       	Black=2} 1-0

[Event "45th FIDE Womens Olympiad 2024"]
[Site "Budapest"]
[Date "2024.09.16"]
[Round "6.41"]
[White "Stefanova, Antoaneta"]
[Black "Theissl Pokorna, Regina"]
[Result "1/2-1/2"]
[ECO "C49"]
[WhiteElo "2416"]
[BlackElo "2302"]
[Annotator "TA"]
[PlyCount "43"]
[EventDate "2024.09.05"]
[EventType "team-tourn"]
[EventCountry "HUN"]
[SourceTitle "playchess.com"]
[Source "ChessBase"]
[SourceQuality "1"]
[WhiteTeam "Bulgaria"]
[BlackTeam "Austria"]
[WhiteTeamCountry "BUL"]
[BlackTeamCountry "AUT"]
[TimeControl "40/5400+30:1800+30"]

{[%evp 13,43,6,11,0,5,0,0,0,20,11,23,13,18,6,13,13,15,20,22,0,15,0,0,-6,0,0,0,0,0,0,0,-8]} 1. e4 e5 2. Nf3 Nc6 3. Nc3 Nf6 4. Bb5 Bb4 5. O-O O-O 6. Bxc6 dxc6 7. d3 Re8 8. Ne2 Bf8 9. h3 a5 10. a4 c5 {[%cal Oc5c4]} 11. b3 Nd7 {[%cal Bf6d7,Bd7b8,Bb8c6,Bc6d4][%mdl 32]} 12. Nh2 Ra6 {The position is equal.} 13. Bd2 Nb8 14. f4 exf4 15. Nxf4 Nc6 16. Bc3 Nd4 17. Qd2 {[%cal Oh2f3]} (17. Nf3 {simplifies} g6 18. Nxd4 cxd4 19. Bd2) 17... Rf6 18. Nd5 Rg6 19. Nf4 Rf6 20. Nd5 Rg6 21. Nf4 Rf6 22. Nd5 {Not much happened in this game.   Weighted Error Value: White=0.06 (flawless) /Black=0.04 (flawless) .  OK:         	White=5     	Black=3      Best:        	---       	Black=1} 1/2-1/2

[Event "45th FIDE Womens Olympiad 2024"]
[Site "Budapest"]
[Date "2024.09.16"]
[Round "6.42"]
[White "Newrkla, Katharina"]
[Black "Salimova, Nurgyul"]
[Result "1/2-1/2"]
[ECO "C72"]
[WhiteElo "2208"]
[BlackElo "2412"]
[Annotator "TA"]
[PlyCount "86"]
[EventDate "2024.09.05"]
[EventType "team-tourn"]
[EventCountry "HUN"]
[SourceTitle "playchess.com"]
[Source "ChessBase"]
[SourceQuality "1"]
[WhiteTeam "Austria"]
[BlackTeam "Bulgaria"]
[WhiteTeamCountry "AUT"]
[BlackTeamCountry "BUL"]
[TimeControl "40/5400+30:1800+30"]

{[%evp 10,86,33,22,30,25,31,22,40,18,31,26,47,25,44,47,54,65,60,60,46,55,85,76,94,61,69,60,77,82,85,59,90,54,43,50,84,83,157,156,145,147,168,167,228,229,229,206,228,184,222,210,226,225,335,334,333,338,401,334,308,266,245,239,270,265,245,258,277,0,0,0,0,0,0,0,0,0,0]} 1. e4 e5 2. Nf3 Nc6 3. Bb5 a6 4. Ba4 d6 5. O-O Bd7 6. c4 Bg4 7. h3 Bxf3 8. Qxf3 Nf6 9. d3 Nd7 {[%cal Ob7b5]} 10. Be3 g6 11. Nc3 {[%cal Bb1c3,Bc3d5,Bd5b6,Bb6c4,Bc4e5][%mdl 32]} Bg7 {[#]} 12. b4 $1 Nd4 (12... Nf8 13. Bxc6+) 13. Bxd4 exd4 14. Bxd7+ Qxd7 15. Nd5 Qd8 {Against Nf6+} 16. c5 $1 O-O 17. Rac1 {White has more active pieces.} dxc5 18. bxc5 (18. Rxc5 c6 19. Nf4 Qe7 $11) 18... c6 19. Nb6 Rb8 {Black is weak on the light squares} 20. Qd1 Qe7 21. Qd2 Be5 22. Qb4 g5 23. Nc4 Rfd8 (23... Bc7 $142) 24. Nxe5 $1 $16 Qxe5 {[#]} 25. f4 $1 {[%mdl 512]} gxf4 (25... Qe7 26. Qd2) 26. Qd2 Re8 (26... Qg5 $142 27. Rxf4 (27. Qxf4 Qxf4 28. Rxf4 b6 $16) 27... Kh8) 27. Rxf4 $18 (27. Qxf4 $6 Qxf4 28. Rxf4 b5 $16) 27... Re6 28. Qf2 {[%cal Oc1f1]} Rf8 29. Rf5 Qg7 30. Rb1 f6 31. Qxd4 Qe7 (31... Re5 $142 32. Rbf1 Rxf5 33. Rxf5 Qe7) 32. Qc4 Re8 33. e5 Kg7 34. exf6+ Rxf6 35. Rxf6 Kxf6 {[%mdl 4096] Endgame. KQR-KQR} 36. Qg4 {Rf1+ would kill now.} Qxc5+ 37. d4 Qg5 38. Qd7 ({Don't do} 38. Rxb7 $6 Qxg4 39. hxg4 Re4 $16) (38. Qxg5+ Kxg5 39. Rxb7 h5 $16) 38... Re7 {[#]} 39. Qd8 (39. Qd6+ $1 $18 Kf7 40. Rf1+ Kg7 41. Rf3 Re1+ 42. Kh2) 39... Kg7 $11 {[%cal Oe7e1] White must now prevent ...Re1+! The position is equal.} 40. Rf1 {Kh2 is the strong threat.} Qe3+ 41. Kh2 Rf7 {Repels Qf8+} 42. Rxf7+ Kxf7 43. Qd7+ Kg6 {Weighted Error Value: White=0.21 (precise) /Black=0.20 (precise) .  Missed win:     	White=1     	---        Mistake:       	---       	Black=3      Inaccurate:     	White=3     	Black=3      OK:         	White=15    	Black=11     Best:        	White=2     	---        Strong:       	White=2     	---        Brilliant:      	White=1     	---} 1/2-1/2

[Event "45th FIDE Womens Olympiad 2024"]
[Site "Budapest"]
[Date "2024.09.16"]
[Round "6.42"]
[White "Ashbrooke, Monika"]
[Black "Kponsou, Afiwa"]
[Result "1-0"]
[ECO "E67"]
[WhiteElo "1650"]
[BlackElo "1453"]
[PlyCount "113"]
[EventDate "2024.09.05"]
[EventType "team-tourn"]
[EventCountry "HUN"]
[WhiteTeam "Jersey"]
[BlackTeam "Togo"]
[BlackTeamCountry "TOG"]
[TimeControl "40/5400+30:1800+30"]

1. d4 g6 2. Nf3 Bg7 3. g3 d6 4. Bg2 Nf6 5. O-O O-O 6. c4 Nbd7 7. Nc3 c6 8. e4 Nb6 9. b3 d5 10. Ne5 dxe4 11. Nxe4 Nxe4 12. Bxe4 f6 13. Nf3 Bg4 14. Be3 Nc8 15. Re1 Nd6 16. Bd3 Qd7 17. Be2 Ne4 18. Ne5 fxe5 19. Bxg4 Qe8 20. Be6+ Kh8 21. f3 Nd6 22. c5 Nf5 23. dxe5 Bxe5 24. Rc1 Rd8 25. Qe2 Rf6 26. Bxf5 Rxf5 27. Rcd1 Bg7 28. Rxd8 Qxd8 29. Rd1 Qf8 30. Kg2 Rd5 31. Bf4 Rxd1 32. Qxd1 e5 33. Be3 h5 34. Qd7 Qb8 35. Qf7 Kh7 36. Bg5 Qf8 37. Qxb7 Qf5 38. Be3 Qc2+ 39. Bf2 e4 40. Qe7 exf3+ 41. Kxf3 Qd1+ 42. Qe2 Qxe2+ 43. Kxe2 Be5 44. Kd3 Kg7 45. Bd4 Kf6 46. a4 Bxd4 47. Kxd4 Ke6 48. b4 a6 49. h4 Kf5 50. b5 axb5 51. a5 b4 52. a6 b3 53. Kc3 Kg4 54. a7 Kxg3 55. a8=Q Kxh4 56. Qxc6 Kg5 57. Qg2+ 1-0

[Event "45th FIDE Womens Olympiad 2024"]
[Site "Budapest"]
[Date "2024.09.16"]
[Round "6.43"]
[White "Krasteva, Beloslava"]
[Black "Exler, Veronika"]
[Result "1/2-1/2"]
[ECO "D80"]
[WhiteElo "2295"]
[BlackElo "2176"]
[Annotator "RC"]
[PlyCount "83"]
[EventDate "2024.09.05"]
[EventType "team-tourn"]
[EventCountry "HUN"]
[SourceTitle "playchess.com"]
[Source "ChessBase"]
[SourceQuality "1"]
[WhiteTeam "Bulgaria"]
[BlackTeam "Austria"]
[WhiteTeamCountry "BUL"]
[BlackTeamCountry "AUT"]
[TimeControl "40/5400+30:1800+30"]

1. d4 Nf6 2. c4 g6 3. Nc3 d5 4. Nf3 Bg7 5. Bg5 Ne4 6. Bf4 Nxc3 7. bxc3 c5 8. cxd5 Qxd5 9. e3 cxd4 10. cxd4 Qa5+ 11. Qd2 Nc6 12. Be2 O-O 13. Qxa5 Nxa5 14. Ne5 Be6 15. Bf3 f6 16. Nd3 Bc4 17. Bc7 Nc6 18. Nb2 Bf7 19. O-O Rac8 20. Bg3 e5 21. dxe5 Nxe5 22. Bxe5 fxe5 23. Be4 Rfd8 24. Rfd1 Rxd1+ 25. Nxd1 b6 26. Kf1 Bf8 27. Ke2 Rc4 28. Bd3 Ra4 29. Nc3 Ra3 30. Nb5 Rxa2+ 31. Rxa2 Bxa2 32. Nxa7 Kf7 33. Nb5 Bd5 34. f3 Bb4 35. h4 h6 36. Nc7 Bb3 37. Be4 Bc4+ 38. Bd3 Bb3 39. Be4 Bc4+ 40. Kf2 Bd6 41. Bd5+ Ke7 42. Bxc4 1/2-1/2